Cogmind - Beta 13 @@@ ROGUE MODE // 2024.04.03 @ 21:25:43 Player: AndK Result: Destroyed by Y-45 Defender with Beam Rifle Performance ------------- Evolutions (1) 500 Regions Visited (2) 400 Robots Destroyed (8) 40 Value Destroyed (166) 166 Prototype IDs (1) 20 Alien Tech Used (0) 0 Bonus (0) 0 TOTAL SCORE: 1126 Bonus ------- None Cogmind --------- Core Integrity 0/400 Matter 31/300 Energy 100/100 System Corruption 4% Temperature Cool (9) Movement Core (100) Ox1 Location -9/Materials Parts ------- > --- POWER (2) -------- (None) > --- PROPULSION (2) --- (None) > --- UTILITY (3) ------ Small Storage Unit > --- WEAPON (2) ------- (None) > --- INVENTORY (8) ---- Hover Unit Hover Unit Assault Rifle Peak State ------------ > --- POWER ------------ Heavy Ion Engine Heavy Ion Engine > --- PROPULSION ------- Aluminum Leg Aluminum Leg > --- UTILITY ---------- Small Storage Unit Large Matter Pod > --- WEAPON ----------- Beam Rifle Beam Rifle > --- INVENTORY -------- Ion Engine Compact Wheel Compact Wheel EM Pulse Gun Small Laser Assault Rifle Grenade Launcher [Rating: 14] Favorites ----------- Power Heavy Ion Engine Engine Heavy Ion Engine Propulsion Hover Unit Leg Aluminum Leg Hover Unit Hover Unit Utility Small Storage Unit Storage Small Storage Unit Weapon Beam Rifle Energy Gun Beam Rifle Ballistic Gun Assault Rifle Launcher Grenade Launcher Build | -11 -10 -9 ------- Run | Yrd Mat Mat Slots Evolved 2 | . . 2 Power 1 | . . 1 Propulsion . | . . . Utility 1 | . . 1 Weapon . | . . . Parts Attached 24 | 7 4 13 Power 7 | 2 1 4 Engine 7 | 2 1 4 Core . | . . . Reactor . | . . . Propulsion 4 | 2 . 2 Treads . | . . . Leg 2 | 2 . . Wheel . | . . . Hover 2 | . . 2 Flight . | . . . Utility 2 | 1 1 . Device . | . . . Storage 2 | 1 1 . Processor . | . . . Hackware . | . . . Protection . | . . . Artifact . | . . . Weapon 11 | 2 2 7 Energy Gun 8 | 2 2 4 Energy Cannon . | . . . Ballistic Gun 1 | . . 1 Ballistic Cannon . | . . . Launcher 2 | . . 2 Special Weapon . | . . . Impact Weapon . | . . . Slashing Weapon . | . . . Piercing Weapon . | . . . Special Melee Weapon . | . . . Unidentified Prototypes 1 | . 1 . Parts Lost 12 | . . 12 Power 3 | . . 3 Propulsion 2 | . . 2 Utility 1 | . . 1 Weapon 6 | . . 6 Highest Loss Streak 9 | . . 9 To Critical Strikes . | . . . Average Slot Usage (%) 84 | . 95 81 Engine 18 | . 14 20 Leg 7 | . 28 . Hover 13 | . . 18 Storage 21 | . 23 21 Energy Gun 22 | . 28 20 Naked Turns . | . . . Heaviest Build 30 | 13 22 30 Greatest Support 20 | 20 20 20 Greatest Overweight (x) 6 | . 1 6 Average Overweight (x) 1 | . . 2 Largest Inventory Capacity 8 | 8 8 8 Average Capacity 7 | 7 8 8 Most Carried 8 | 6 8 8 Average Carried 6 | 3 5 7 Final Capacity 8 | 8 8 8 Final Carried 8 | 4 8 3 Class Distribution -------------------- 100% | Mutant Dominant Class ---------------- Mutant | -10/Materials Mutant | -9/Materials Resources | -11 -10 -9 ----------- Run | Yrd Mat Mat Matter Collected 242 | 183 17 42 Remotely . | . . . Salvage Created 238 | . 17 221 Parts 13 | . 2 11 Haulers Intercepted . | . . . Recyclers Shooed . | . . . Parts Field Recycled . | . . . Retrieved Matter . | . . . Parts Self-Destructed . | . . . Prevented . | . . . Kills | -11 -10 -9 ------- Run | Yrd Mat Mat Combat Hostiles Destroyed 3 | . . 3 Guns 2 | . . 2 AOE 1 | . . 1 Classes Destroyed 6 | . 1 5 Worker 1 | . . 1 Builder 2 | . 1 1 Recycler 1 | . . 1 Watcher 1 | . . 1 Grunt 2 | . . 2 Sentry 1 | . . 1 Best Kill Streak 5 | . 1 5 Combat Bots Only 1 | . . 1 Max Kills in Single Turn 3 | . 1 3 Gunslinging . | . . . Exploded 1 | . . 1 Melee . | . . . Uniques/NPCs Destroyed . | . . . Combat | -11 -10 -9 -------- Run | Yrd Mat Mat Hostile Shots Fired 117 | . . 117 Missed 14 | . . 14 Damage Taken 1371 | . . 1371 Core 409 | . . 409 Absorbed by Shields . | . . . Core Remaining (%) 100 | 100 100 . Volleys Fired 33 | . 2 31 Largest 2 | . 2 2 Hottest 112 | . 80 112 Shots Fired 44 | . 4 40 Gun 39 | . 4 35 Cannon . | . . . Launcher 5 | . . 5 Special . | . . . Kinetic . | . . . Thermal 35 | . 2 33 Explosive 5 | . . 5 Electromagnetic 4 | . 2 2 Robot Hit Streak 5 | . 1 5 Robot Miss Streak 4 | . 1 4 Penetration Max . | . . . Secondary Targets . | . . . Shots Hit Robots 24 | . 2 22 Core Hits 17 | . 1 16 Critical Kills . | . . . Critical Parts Destroyed . | . . . Critical Strikes 1 | . . 1 Burn 1 | . . 1 Melee Attacks . | . . . Impact . | . . . Slashing . | . . . Piercing . | . . . Sneak Attacks . | . . . Combat Hostiles . | . . . Follow-up Attacks . | . . . Damage Inflicted 795 | . 39 756 Guns 320 | . 39 281 Cannons . | . . . Explosions 475 | . . 475 Melee . | . . . Ramming . | . . . Kinetic . | . . . Thermal 292 | . 24 268 Explosive 475 | . . 475 Electromagnetic 28 | . 15 13 Impact . | . . . Slashing . | . . . Piercing . | . . . Highest Corruption 4 | . . 4 Average Corruption 2 | . . 2 Corruption Purged . | . . . Corruption Blocked . | . . . Effects 4 | . . 4 Message Errors 1 | . . 1 Matter Fused 1 | . . 1 Heat Flow Errors 1 | . . 1 Weapon Failures 1 | . . 1 Overload Shots . | . . . Overflow Damage . | . . . Projectiles . | . . . Explosions . | . . . Melee . | . . . Knockbacks . | . . . Impact . | . . . Kinetic . | . . . Secondary . | . . . Self-Inflicted Damage 115 | . . 115 Shots 4 | . . 4 Rammed . | . . . Targets Rammed . | . . . Kicked . | . . . Crushed . | . . . Highest Temperature 600 | . 18 600 Average Temperature 263 | . 12 274 Received Heat Transfer 468 | . . 468 Effects 18 | . . 18 Shutdowns 4 | . . 4 Energy Bleed 1 | . . 1 Interference 4 | . . 4 Matter Decay 5 | . . 5 Short Circuit 2 | . . 2 Damage (minor) 1 | . . 1 Damage (major) 1 | . . 1 Siege Activations . | . . . Robots Corrupted . | . . . Combat Hostiles . | . . . Parts Fried . | . . . Impact Corruptions . | . . . Robots Melted . | . . . Combat Hostiles . | . . . Parts Melted 1 | . . 1 Heat Transferred 803 | . 50 753 Parts Sabotaged . | . . . Parts Stolen . | . . . Parts Stripped . | . . . Power Chain Reactions . | . . . Alert | -11 -10 -9 ------- Run | Yrd Mat Mat Peak Influence 138 | . 39 138 Initial 16 | . . 16 Average 25 | . 27 28 Maximum Alert Level . | . . . Low Security (%) 100 | 100 100 100 Level 1 . | . . . Level 2 . | . . . Level 3 . | . . . Level 4 . | . . . Level 5 . | . . . High Security . | . . . Max Security . | . . . Squads Dispatched 2 | . . 2 Investigation 1 | . . 1 Extermination . | . . . Reinforcement 1 | . . 1 Assault . | . . . Garrison . | . . . Intercept . | . . . Searches Triggered . | . . . Construction Impeded . | . . . Haulers Reinforced . | . . . Active Scanning Responses . | . . . Cargo Convoy Interrupts . | . . . Stealth | -11 -10 -9 --------- Run | Yrd Mat Mat Distress Signals . | . . . Communications Jammed . | . . . Distress Signals . | . . . Times Spotted 13 | . 2 11 Peak Tracking Total 6 | . 2 6 Tactical Retreats . | . . . Traps | -11 -10 -9 ------- Run | Yrd Mat Mat Traps Triggered 3 | . . 3 Indirectly . | . . . Trap Hack Attempts . | . . . Triggered . | . . . Disarmed . | . . . Reprogrammed . | . . . Reused . | . . . Traps Extracted . | . . . Installed . | . . . Triggered . | . . . Machines | -11 -10 -9 ---------- Run | Yrd Mat Mat Machines Disabled 2 | . . 2 Max in Single Turn 1 | . . 1 Machines Repaired . | . . . Machines Dismantled . | . . . Machines Sabotaged . | . . . Overloaded Fab Kills . | . . . Hacking | -11 -10 -9 --------- Run | Yrd Mat Mat Machines Accessed 4 | . 1 3 Terminals 4 | . 1 3 Fabricators . | . . . Repair Stations . | . . . Recycling Units . | . . . Scanalyzers . | . . . Garrison Access . | . . . Total Hacks 13 | . 3 10 Successful 2 | . 1 1 Failed 11 | . 2 9 Catastrophic 1 | . 1 . Database Lockouts . | . . . Manual . | . . . Terminals 13 | . 3 10 Fabricators . | . . . Repair Stations . | . . . Recycling Units . | . . . Scanalyzers . | . . . Garrison Access . | . . . Terminal Hacks 2 | . 1 1 Locate Traps 1 | . 1 . Dispatch Records 1 | . . 1 Fabricator Hacks . | . . . Repair Station Hacks . | . . . Recycling Unit Hacks . | . . . Scanalyzer . | . . . Garrison Access Hacks . | . . . Unauthorized Hacks . | . . . Terminals . | . . . Fabricators . | . . . Repair Stations . | . . . Recycling Units . | . . . Scanalyzers . | . . . Garrison Access . | . . . Data Cores Recovered . | . . . Used . | . . . Hacking Detections 3 | . 1 2 Full Trace Events 3 | . 1 2 Feedback Events . | . . . Feedback Blocked . | . . . Robot Schematics Acquired . | . . . Robots Built . | . . . Authchips . | . . . Time . | . . . Total Robot Build Rating . | . . . Part Schematics Acquired . | . . . Parts Built . | . . . Authchips . | . . . Time . | . . . Total Part Build Rating . | . . . Parts Repaired . | . . . Time . | . . . Parts Recycled . | . . . Recycled Matter . | . . . Retrieved Matter . | . . . Retrieved Components . | . . . Parts Scanalyzed . | . . . Part Schematics Acquired . | . . . Parts Damaged . | . . . Bothacking | -11 -10 -9 ------------ Run | Yrd Mat Mat Used RIF Installer . | . . . Robots Hacked . | . . . Non-combat . | . . . Combat . | . . . Robot Hacks Applied . | . . . Relay Couplers Released . | . . . Fabnet Peak Effective % . | . . . Robots Rewired . | . . . Allies Hacked . | . . . Hacks Repelled . | . . . Allies | -11 -10 -9 -------- Run | Yrd Mat Mat Total Allies . | . . . Largest Group . | . . . Highest-Rated Group . | . . . Highest-Rated Ally . | . . . Total Orders . | . . . Ally Attacks . | . . . Total Damage . | . . . Kills . | . . . Allies Corrupted . | . . . Allies Melted . | . . . Intel | -11 -10 -9 ------- Run | Yrd Mat Mat Robot Analysis Total . | . . . Derelict Logs Recovered . | . . . Drone Launches . | . . . Drone Recoveries . | . . . Exploration | -11 -10 -9 ------------- Run | Yrd Mat Mat Turns Passed 1080 | 86 260 734 Spaces Moved 589 | 60 177 352 Core 29 | 10 . 19 Treads . | . . . Legs 234 | 50 177 7 Wheels . | . . . Hover 326 | . . 326 Flight . | . . . Fastest Speed 50 | 50 120 100 Average Speed 158 | 108 132 180 Slowest Speed 350 | 120 190 350 Overloaded Moves . | . . . Propulsion Burnouts . | . . . Robots Hopped . | . . . Cave-ins Triggered . | . . . Exploration Rate (%) 25 | 6 41 30 Regions Visited 2 Branch Regions . Pre-discovered Areas . | . . . Known Exits Taken . | . . . Unknown Exits Taken 2 | 1 1 . Scrap Searched . | . . . Spaces Dug . | . . . Terrain Destroyed 16 | . . 16 Melee . | . . . Projectile . | . . . AOE 16 | . . 16 Terrain Rammed . | . . . Walls Destroyed . | . . . Machines Disabled . | . . . Actions | -11 -10 -9 --------- Run | Yrd Mat Mat Total 686 | 80 198 408 Wait 16 | 4 9 3 Move 587 | 59 176 352 Hop . | . . . Pick Up 21 | 10 6 5 Fast Attach . | . . . Attach 13 | 6 1 6 Detach . | . . . Swap 11 | 1 3 7 Drop 5 | . 1 4 Fire 33 | . 2 31 Melee . | . . . Ram . | . . . Kick . | . . . Crush . | . . . Escape Stasis . | . . . Rewire . | . . . Trap . | . . . Miscellaneous . | . . . Route ------- -11/Scrapyard -10/Materials -9/Materials (discovered 1 exit: [*Min]) History --------- Turn | Location | Event 26 | -11/Scrapyard | Discovered new exit (range 15) 87 | -11/Scrapyard | Entered Materials 231 | -10/Materials | Discovered new exit (range 11) 311 | -10/Materials | Build established: Mutant 347 | -10/Materials | Entered another Materials area 347 | -9/Materials | Evolved 2 slots: Power x1, Utility x1 438 | -9/Materials | Discovered new exit (range 14) 1016 | -9/Materials | Core integrity fell below 50% 1061 | -9/Materials | Lost 9 parts (2p2n1u4w) 1061 | -9/Materials | Core integrity fell below 20% 1081 | -9/Materials | Destroyed by Y-45 Defender with Beam Rifle Last Messages --------------- Overheating: Matter decay (-7). EM Pulse Gun broken. Overheating: Short circuit. 2OZIB>>FZX5YV6WKFPFANJDSS9TNZVI U-05 Engineer lays Concrete. U-05 Engineer builds a Door. U-05 Engineer builds a Wall. Overheating: System interference. Sml. Laser temporarily disabled. Lrg. Matter Pod destroyed. U-05 Engineer lays Concrete. Broken EM Pulse Gun destroyed. U-05 Engineer lays Concrete. Critical hit (Burn: +37). M-13 Machinist repairs Y-45 Defender. M-13 Machinist repairs G-34 Mercenary. Sml. Laser destroyed. M-13 Machinist repairs Ion Engine. Beam Rifle destroyed. Hvy. Ion Engine destroyed. Map ----- +----------------------------------------------------+ | | | | | | | ?????????????????????????????????????????????????? | | ?????????????????????????????????????????????????? | | ?????????????????????????????????????????????????? | | ?????????????????????????????????????????????????? | | ?????????????????????????????????????????????????? | | ?????????????????????????????????????????????????? | | ?????????????????????????????????????????????????? | | ?????????????????????????????????????????????????? | | ?????????????????????????????????????????????????? | | ?????????????????????????????????????????????????? | | ?????????????????????????????????????????????????? | | ?????????????????????????????????????????????????? | | ?????????????????????????????????????????????????? | | ?????????????????????????????????????????????????? | | ?????????????????????????????????????????????????? | | ?????????????????????????????????????????????????? | | ?????????????????????????????????????????????????? | | ?????????????????????????????????????????????????? | | ?????????????????????????????????????????????????? | | ????????????????????????##+###???????????????????? | | ?????????#######+######## #???????????????????? | | ???????? # #???????????????????? | | ???????? /@ #???????????????????? | | ???????? Y s s ss# #???????????????????? | | ???????? m ######### # #???????????????????? | | ????????? ???# # #???????????????????? | | ?????????? ???# # #???????????????????? | | ??????????? ???# # #???????????????????? | | ??????????? ???# # #???????????????????? | | ?????????????# #### ######???????????????????? | | ?????????????## ##+####?????????????????????? | | ?????????????# #?????????????????????? | | ????????????## " """ #?????????????????????? | | ????????????# % "" """ #?????????????????????? | | ????????????## " """ #?????????????????????? | | ????????????# #?????????????????????? | | ????????????# % #?????????????????????? | | ???????????### #####+####### #???????????????? | | ???????????# ^ % T #???????????????? | | ???????????# ^ ###### #???????????????? | | ???????????# ^ #??????????????????????????? | | ???????????# ###+####??????????????????????????? | | ?########### # ????????????????????????????? | | ?# # # #??????????????????????????? | | ?# # # " " #??????????????????????????? | | ?# # #! "R" #??????????????????????????? | | ?# # # """ #??????????????????????????? | +----------------------------------------------------+ Best States ------------- Heat Dissipation 28 Energy Generation 23 Energy Capacity 460 Matter Stores 223 Matter Capacity 450 Sight Range 16 Terrain Scan Density 10 Evasion (%) 55 Item Schematics ----------------- None Robot Schematics ------------------ None Fabricated ------------ Nothing Alien Tech Used ----------------- None Achievements -------------- None Challenges ------------ None Game ------ Seed PointDecoderModule Manual? 0 Play Time 00:11:34 Cumulative 6.2 hours Start 2024.04.03 @ 21:16:28 End 2024.04.03 @ 21:25:43 Sessions 1 Manual Loads 0 Difficulty Rogue Special Mode None Game No. 14 Rogue 14 Adventurer 0 Explorer 0 Win Type - Total 0 Types 0/0/0/0/0/0/0/0/0 Lore% 9 Gallery% 11 Achievement% 11 Wizard Run 0 Options --------- Layout 1 ASCII 0 Keyboard 0 Movement Mouse Keybinds 0 Fullscreen 1 Font 32/SmallcapsGlow Map View 50x35 Zoom Use 0% Tactical HUD 0 Map Filters NONE Filters NONE Steam 1 RUN: 70719e82-663a-4666-ae9b-f85661c8e09d